bitfinex/quotes_SOLUSD_20250422
["timestamp","ask_amount","ask_price","bid_price","bid_amount"]
[1745291606549,7.19631548,138.96,138.93,18.64964886]
[1745291607555,7.19579765,138.97,138.93,39.83185755]
[1745291608355,7.19579765,138.97,138.93,18.64964886]
[1745291608356,28.37800634,138.97,138.93,18.64964886]
[1745291608755,7.19579765,138.97,138.92,29.09448587]
[1745291609067,28.37800634,138.97,138.92,29.09448587]
[1745291609256,7.19579765,138.97,138.92,29.09448587]
[1745291609457,28.37800634,138.97,138.92,29.09448587]
[1745291611279,13.250283,138.97,138.93,13.250283]
[1745291611481,7.19372706,139.01,138.96,31.89993186]
[1745291611773,7.19372706,139.01,138.98,13.250283]
[1745291612481,7.25620961,139.02,138.98,13.250283]
[1745291613984,13.250283,139.0,138.95,28.790283]
[1745291614277,13.250283,138.98,138.93,13.250283]
[1745291614570,13.250283,138.97,138.92,21.16256018]
[1745291614781,7.19631548,138.96,138.92,21.16256018]
[1745291615357,20.44659848,138.96,138.91,47.43993186]
[1745291615776,22.04149848,138.96,138.91,47.43993186]
[1745291615970,22.04149848,138.96,138.91,28.790283]
[1745291616170,45.58046535,139.01,138.95,13.250283]
[1745291616379,58.83074835,139.01,138.96,13.250283]
[1745291616759,7.1942446,139.0,138.96,13.250283]
[1745291616965,13.250283,138.99,138.93,18.64964886]
[1745291617269,28.38800674,139.0,138.95,21.19376214]
[1745291617465,28.38800674,139.0,138.92,18.64964886]
[1745291617780,7.1942446,139.0,138.96,21.19376214]
[1745291618273,8.78883854,139.01,138.93,15.3]
[1745291618483,29.98260068,139.01,138.96,21.19376214]
[1745291619582,7.19393854,139.01,138.98,21.19376214]
[1745291619777,7.19393854,139.01,138.97,21.19376214]
[1745291620867,7.19393854,139.01,138.98,21.19376214]
[1745291621176,0.063,139.02,139.01,61.82964886]
[1745291621488,0.063,139.08,139.04,18.64964886]
[1745291621686,0.063,139.08,139.07,65.843411]
[1745291627581,0.063,139.08,139.07,148.443411]
[1745291629270,0.063,139.1,139.08,18.64964886]
[1745291629476,0.063,139.1,139.08,39.843411]
[1745291630970,0.063,139.1,139.09,39.843411]
[1745291631293,0.063,139.1,139.09,122.443411]
[1745291635283,0.063,139.1,139.08,21.19376214]
[1745291635491,0.063,139.1,139.09,21.19376214]
[1745291635886,0.063,139.1,139.08,18.64964886]
[1745291636078,0.063,139.1,139.09,39.843411]
[1745291639307,0.063,139.1,139.09,31.86827534]
[1745291640872,0.063,139.1,139.09,13.21862648]
[1745291647618,0.063,139.1,139.09,31.86827534]
[1745291648388,0.063,139.1,139.05,82.6]
[1745291648586,13.21862648,139.08,139.01,15.24]
[1745291648785,13.21862648,139.07,139.02,13.21862648]
[1745291649098,13.21862648,139.08,139.03,13.21862648]
[1745291649299,13.21862648,139.09,139.04,13.21862648]
[1745291649506,13.21862648,139.08,139.03,13.21862648]
[1745291649703,7.19062342,139.07,139.03,13.21862648]
[1745291649906,13.21862648,139.06,139.01,15.24]
[1745291650082,13.21862648,139.06,139.01,28.45862648]
[1745291650287,7.19062342,139.07,139.03,13.21862648]
[1745291650711,7.18958947,139.09,139.05,13.21862648]
[1745291650914,20.40821595,139.09,139.04,13.21862648]
[1745291651502,7.18958947,139.09,139.05,13.21862648]
[1745291651705,7.18958947,139.09,139.06,13.21862648]
[1745291651991,7.18958947,139.09,139.07,13.21862648]
[1745291652303,7.25229,139.1,139.07,13.21862648]
[1745291652615,0.063,139.1,139.08,13.21862648]
[1745291652918,0.063,139.1,139.09,13.21862648]
[1745291653294,0.063,139.1,139.09,31.86827534]
[1745291655324,0.063,139.1,139.09,39.79281967]
[1745291655690,0.063,139.1,139.09,65.79281967]
[1745291657326,0.063,139.1,139.09,148.39281967]
[1745291657815,0.063,139.1,139.09,65.79281967]
[1745291658021,0.063,139.1,139.09,55.03281967]
[1745291658721,0.063,139.1,139.09,81.03281967]
[1745291658895,0.063,139.1,139.09,163.63281967]
[1745291659524,0.063,139.11,139.1,18.64964886]
[1745291659723,0.063,139.11,139.1,39.79281967]
[1745291660223,0.063,139.11,139.1,60.93599048]
[1745291661123,0.063,139.11,139.1,39.79281967]
[1745291666325,0.03,139.13,139.12,44.64964886]
[1745291666542,0.03,139.13,139.12,65.79281967]
[1745291667314,0.03,139.13,139.12,86.93599048]
[1745291667628,0.063,139.14,139.13,18.64964886]
[1745291667827,0.063,139.14,139.13,39.79281967]
[1745291668828,0.03,139.17,139.13,122.39281967]
[1745291669024,0.03,139.17,139.14,81.03281967]
[1745291672413,0.03,139.17,139.14,86.9026433]
[1745291672614,0.03,139.17,139.15,18.64964886]
[1745291672820,0.03,139.17,139.15,148.39281967]
[1745291673554,0.03,139.17,139.16,39.79281967]
[1745291674427,0.03,139.18,139.17,44.64964886]
[1745291674742,0.03,139.18,139.17,65.79281967]
[1745291675413,0.03,139.18,139.17,57.84562346]
[1745291680442,0.03,139.18,139.17,140.44562346]
[1745291680946,0.063,139.22,139.21,18.64964886]
[1745291681122,0.063,139.22,139.21,31.84562346]
[1745291682030,0.063,139.22,139.21,13.1959746]
[1745291682227,0.063,139.22,139.2,15.22]
[1745291682542,0.063,139.22,139.19,13.1959746]
[1745291682735,0.063,139.22,139.18,18.64964886]
[1745291682736,0.063,139.22,139.21,13.1959746]
[1745291683524,0.063,139.22,139.21,172.84562346]
[1745291683723,1.2040657,139.32,139.3,18.64964886]
[1745291683940,1.2040657,139.32,139.31,31.84562346]
[1745291684135,1.2040657,139.32,139.3,33.86964886]
[1745291684446,1.2040657,139.32,139.31,13.1959746]
[1745291685151,1.2040657,139.32,139.3,15.22]
[1745291685350,1.2040657,139.32,139.3,13.1959746]
[1745291685534,1.2040657,139.32,139.31,13.1959746]
[1745291687250,0.9640657,139.32,139.31,47.06562346]
[1745291688453,0.9640657,139.32,139.31,33.86964886]
[1745291688646,0.9640657,139.32,139.3,13.1959746]
[1745291688833,0.9640657,139.32,139.31,13.1959746]
[1745291689152,0.9640657,139.32,139.28,18.64964886]
[1745291689545,0.9640657,139.32,139.31,13.1959746]
[1745291691757,0.9640657,139.32,139.28,18.64964886]
[1745291691931,0.9640657,139.32,139.31,13.1959746]
[1745291692244,0.9640657,139.32,139.28,18.64964886]
[1745291692451,0.9640657,139.32,139.29,13.1959746]
[1745291692452,8.14201098,139.32,139.29,13.1959746]
[1745291692940,8.14201098,139.32,139.3,13.1959746]
[1745291693739,0.9640657,139.32,139.31,13.1959746]
[1745291695462,0.9640657,139.32,139.28,18.64964886]
[1745291695638,0.9640657,139.32,139.31,13.1959746]
[1745291696947,0.9640657,139.32,139.31,31.84562346]
[1745291698663,0.9640657,139.32,139.31,18.64964886]
[1745291698855,0.9640657,139.32,139.31,31.84562346]
[1745291699566,8.14178605,139.32,139.31,31.84562346]
[1745291699767,8.14178605,139.32,139.3,13.1959746]
[1745291700260,0.9640657,139.32,139.31,13.1959746]
[1745291700437,0.9640657,139.32,139.31,57.84562346]
[1745291702965,0.9640657,139.32,139.29,39.1959746]
[1745291703168,0.9640657,139.32,139.3,18.64964886]
[1745291703345,0.9640657,139.32,139.3,31.84562346]
[1745291704053,8.1419776,139.32,139.3,31.84562346]
[1745291704566,0.9640657,139.32,139.31,13.1959746]
[1745291707251,0.9640657,139.32,139.31,114.44562346]
[1745291707454,0.039,139.35,139.34,44.64964886]
[1745291707662,0.039,139.35,139.34,73.04562346]
[1745291708268,0.03,139.38,139.37,44.64964886]
[1745291708478,0.03,139.38,139.37,57.84562346]
[1745291708668,0.03,139.38,139.37,140.44562346]
[1745291709372,7.17107615,139.45,139.38,18.64964886]
[1745291709686,7.17107615,139.45,139.4,18.64964886]
[1745291709850,7.17107615,139.45,139.42,13.1959746]
[1745291710248,1.5529,139.46,139.43,31.84562346]
[1745291710562,13.31248287,139.47,139.44,13.1959746]
[1745291710950,6.2518,139.51,139.47,18.64964886]
[1745291711245,13.41978449,139.51,139.49,13.1959746]
[1745291711649,1.5775,139.53,139.5,31.84562346]
[1745291711650,7.16756689,139.52,139.5,31.84562346]
[1745291712176,7.16756689,139.52,139.5,18.64964886]
[1745291712676,7.16756689,139.52,139.5,13.1959746]
[1745291713159,7.16756689,139.52,139.49,15.2]
[1745291713363,7.16756689,139.52,139.5,31.84562346]
[1745291713570,7.16756689,139.52,139.49,15.2]
[1745291713769,7.16756689,139.52,139.49,28.3959746]
[1745291714862,7.16756689,139.52,139.5,13.1959746]
[1745291715365,7.16756689,139.52,139.5,31.84562346]
[1745291715571,7.16640389,139.54,139.51,31.84562346]
[1745291716081,20.36237849,139.54,139.51,18.64964886]
[1745291716276,7.16640389,139.54,139.51,13.1959746]
[1745291716450,7.16640389,139.54,139.5,18.64964886]
[1745291716656,7.16640389,139.54,139.5,31.84562346]
[1745291716977,7.16640389,139.54,139.5,18.64964886]
[1745291717179,7.16640389,139.54,139.51,13.1959746]
[1745291719176,1.2040657,139.6,139.54,18.64964886]
[1745291719378,1.2040657,139.6,139.59,18.64964886]
[1745291719589,1.2040657,139.6,139.59,31.84562346]
[1745291720877,1.2040657,139.6,139.59,47.04562346]
[1745291721266,1.2040657,139.6,139.59,54.84710522]
[1745291721454,1.2040657,139.6,139.58,82.6]
[1745291721657,1.2040657,139.6,139.58,18.64964886]
[1745291722282,1.2040657,139.6,139.59,39.64710522]
[1745291722781,1.2040657,139.6,139.57,20.99745636]
[1745291722969,20.99745636,139.58,139.53,20.99745636]
[1745291723171,28.16231986,139.57,139.53,20.99745636]
[1745291723373,28.16195669,139.58,139.54,20.99745636]
[1745291723689,7.16450033,139.58,139.55,18.64964886]
[1745291724982,20.99745636,139.56,139.51,15.18]
[1745291725184,20.99745636,139.55,139.51,15.18]
[1745291725385,20.99745636,139.56,139.51,36.17745636]
[1745291725565,20.99745636,139.56,139.52,18.64964886]
[1745291726166,20.99745636,139.55,139.52,18.64964886]
[1745291727191,7.16640389,139.54,139.51,15.18]
[1745291727369,28.16386025,139.54,139.51,15.18]
[1745291731094,7.16640389,139.54,139.51,15.18]
[1745291731289,7.16640389,139.54,139.51,36.17745636]
[1745291731787,7.16589036,139.55,139.51,36.17745636]
[1745291732167,28.16334672,139.55,139.51,15.18]
[1745291732364,7.16589036,139.55,139.51,15.18]
[1745291732568,28.16334672,139.55,139.51,15.18]
[1745291733089,7.16589036,139.55,139.52,39.64710522]
[1745291733386,7.16435019,139.58,139.54,20.99745636]
[1745291734690,28.16180655,139.58,139.53,20.99745636]
[1745291735585,20.99745636,139.57,139.52,39.64710522]
[1745291735888,20.99745636,139.56,139.51,15.18]
[1745291736104,20.99745636,139.55,139.5,266.93745636]
[1745291736478,20.99745636,139.53,139.49,15.18]
[1745291736707,20.99745636,139.5,139.45,15.18]
[1745291736877,20.99745636,139.51,139.46,20.99745636]
[1745291737196,33.8854,139.54,139.48,20.99745636]
[1745291737378,20.99745636,139.53,139.49,20.99745636]
[1745291737579,7.16743119,139.52,139.5,20.99745636]
[1745291738381,28.16488755,139.52,139.47,20.99745636]
[1745291738703,20.99745636,139.51,139.46,20.99745636]
[1745291738878,20.99745636,139.5,139.45,54.82710522]
[1745291739289,20.99745636,139.5,139.46,20.99745636]
[1745291739491,20.99745636,139.5,139.45,54.82710522]
[1745291739799,7.16897268,139.49,139.45,54.82710522]
[1745291740496,7.16897268,139.49,139.46,20.99745636]
[1745291740797,7.16897268,139.49,139.45,54.82710522]
[1745291741698,28.16642904,139.49,139.45,54.82710522]
[1745291742004,20.99745636,139.48,139.45,15.18]
[1745291742207,20.99745636,139.48,139.43,39.64710522]
[1745291742784,20.99745636,139.48,139.43,18.64964886]
[1745291742980,28.1679712,139.46,139.41,15.18]
[1745291743179,20.99745636,139.42,139.37,118.77745636]
[1745291743398,13.16503846,139.41,139.37,15.18]
[1745291743983,109.0,139.45,139.39,13.16503846]
[1745291743984,13.16503846,139.44,139.39,13.16503846]
[1745291744378,25.09680194,139.46,139.4,13.16503846]
[1745291744595,13.16503846,139.45,139.4,13.16503846]
[1745291744914,13.16503846,139.43,139.39,18.64964886]
[1745291745093,7.17257208,139.42,139.39,31.81468732]
[1745291745297,7.17257208,139.42,139.39,39.70898093]
[1745291747112,7.17000071,139.47,139.42,18.64964886]
[1745291747319,90.8476,139.51,139.46,21.05933207]
[1745291747320,7.16845878,139.5,139.46,21.05933207]
[1745291747494,7.16845878,139.5,139.47,21.05933207]
[1745291747694,7.1669175,139.53,139.49,21.05933207]
[1745291748718,7.1669175,139.53,139.5,21.05933207]
[1745291749019,7.1669175,139.53,139.51,21.05933207]
[1745291749317,21.05933207,139.55,139.51,21.05933207]
[1745291749520,7.16537689,139.56,139.5,21.05933207]
[1745291749701,46.1381512,139.56,139.51,21.05933207]
[1745291749890,25.07881913,139.56,139.5,21.05933207]
[1745291750094,21.05933207,139.54,139.48,18.64964886]
[1745291750420,21.05933207,139.52,139.47,118.83933207]
[1745291750621,21.05933207,139.49,139.44,36.23933207]
[1745291750913,21.05933207,139.46,139.41,103.65933207]
[1745291751137,46.15253539,139.48,139.43,21.05933207]
[1745291751432,46.15253539,139.48,139.41,21.05933207]
[1745291751433,21.05933207,139.46,139.41,21.05933207]
[1745291751601,21.05933207,139.47,139.43,21.05933207]
[1745291751801,21.05933207,139.45,139.42,18.64964886]
[1745291752009,21.05933207,139.46,139.42,18.64964886]
[1745291752699,28.22830475,139.49,139.44,21.05933207]
[1745291753017,7.16897268,139.49,139.45,21.05933207]
[1745291753219,7.16897268,139.49,139.46,21.05933207]
[1745291753728,21.05933207,139.47,139.43,18.64964886]
[1745291754818,28.22984691,139.46,139.42,18.64964886]
[1745291755740,28.22984691,139.46,139.42,39.70898093]
[1745291756412,28.22984691,139.46,139.42,18.64964886]
[1745291756798,28.22984691,139.46,139.42,39.70898093]
[1745291758239,7.17051484,139.46,139.42,39.70898093]
[1745291759314,7.17051484,139.46,139.42,18.64964886]
[1745291759520,7.17051484,139.46,139.42,39.70898093]
[1745291759917,7.17016309,139.47,139.43,21.05933207]
[1745291760327,28.22901944,139.48,139.44,18.64964886]
[1745291760523,28.22901944,139.48,139.43,21.05933207]
[1745291760820,21.05933207,139.47,139.42,21.05933207]
[1745291762335,38.98304873,139.48,139.43,21.05933207]
[1745291762513,21.05933207,139.48,139.43,21.05933207]
[1745291763241,21.05933207,139.47,139.42,21.05933207]
[1745291763540,7.17051484,139.46,139.42,21.05933207]
[1745291763741,28.22984691,139.46,139.4,97.78]
[1745291763943,21.05933207,139.45,139.4,97.78]
[1745291764240,21.05933207,139.44,139.4,97.78]
[1745291764920,7.17205766,139.43,139.4,97.78]
[1745291765130,7.17205766,139.43,139.4,15.18]
[1745291765827,28.23138973,139.43,139.4,15.18]
[1745291766147,28.23138973,139.43,139.39,39.70898093]
[1745291766148,28.23138973,139.43,139.39,18.64964886]
[1745291766518,28.23138973,139.43,139.38,47.05933207]
[1745291766725,28.23138973,139.43,139.39,21.05933207]
[1745291766928,28.23138973,139.43,139.38,47.05933207]
[1745291767113,21.05933207,139.42,139.37,39.70898093]
[1745291767437,21.05933207,139.4,139.36,44.12675465]
[1745291767638,21.05933207,139.39,139.36,15.18]
[1745291767836,21.05933207,139.38,139.34,39.70898093]
[1745291769024,21.05933207,139.36,139.32,343.723]
[1745291769231,8.2096,139.4,139.32,97.843]
[1745291769232,7.17669011,139.34,139.32,97.843]
[1745291769423,28.23558498,139.35,139.32,15.243]
[1745291769740,83.0,139.39,139.33,18.64964886]
[1745291769741,7.17411579,139.39,139.33,18.64964886]
[1745291769913,7.17411579,139.39,139.34,21.05933207]
[1745291769914,28.23344786,139.39,139.34,21.05933207]
[1745291770439,28.23344786,139.39,139.35,18.64964886]
[1745291770941,21.05933207,139.38,139.33,21.05933207]
[1745291771239,7.17514529,139.37,139.34,18.64964886]
[1745291771534,21.05933207,139.4,139.36,18.64964886]
[1745291771732,7.17360114,139.4,139.36,39.70898093]
[1745291772033,7.17360114,139.4,139.37,21.05933207]
[1745291772333,28.23293321,139.4,139.35,26.0]
[1745291772528,28.23293321,139.4,139.35,47.05933207]
[1745291772727,7.17360114,139.4,139.37,18.64964886]
[1745291772919,7.17360114,139.4,139.37,39.70898093]
[1745291773120,7.17360114,139.4,139.36,18.64964886]
[1745291773337,28.23293321,139.4,139.36,21.05933207]
[1745291773938,7.17360114,139.4,139.37,18.64964886]
[1745291774941,1.6357,139.44,139.4,18.64964886]
[1745291775340,7.17205766,139.43,139.4,21.05933207]
[1745291775633,38.98693922,139.45,139.41,18.64964886]
[1745291775634,7.17160939,139.44,139.41,18.64964886]
[1745291776154,28.23094146,139.44,139.4,18.64964886]
[1745291776744,7.17160939,139.44,139.38,39.70898093]
[1745291776939,21.05933207,139.43,139.38,39.70898093]
[1745291777345,7.17257208,139.42,139.38,39.70898093]
[1745291778338,7.17257208,139.42,139.4,18.64964886]
[1745291778733,21.05933207,139.44,139.4,18.64964886]
[1745291778943,28.23036111,139.45,139.41,18.64964886]
[1745291779167,1.6357,139.47,139.41,18.64964886]
[1745291779355,6.5739,139.5,139.46,39.70898093]
[1745291779653,7.19764368,139.52,139.49,39.70898093]
[1745291779826,0.03,139.52,139.5,21.05933207]
[1745291780227,0.03,139.52,139.51,21.05933207]
[1745291782150,0.03,139.52,139.51,18.64964886]
[1745291782534,0.03,139.52,139.51,39.70898093]
[1745291783154,0.03,139.52,139.51,18.64964886]
[1745291783955,0.03,139.52,139.51,39.70898093]
[1745291784446,0.03,139.52,139.51,18.64964886]
[1745291785538,0.03,139.52,139.51,39.70898093]
[1745291789255,0.03,139.52,139.51,123.93848093]
[1745291789460,0.03,139.53,139.51,123.93848093]
[1745291789461,0.03,139.53,139.52,18.64964886]
[1745291789780,0.03,139.57,139.56,21.05933207]
[1745291790455,0.03,139.57,139.54,26.0]
[1745291790755,21.08933207,139.57,139.54,26.0]
[1745291790952,0.03,139.57,139.54,26.0]
[1745291791327,0.03,139.57,139.53,39.70898093]
[1745291791530,0.03,139.57,139.53,18.64964886]
[1745291791531,21.05933207,139.56,139.53,18.64964886]
[1745291791963,0.03,139.57,139.56,18.64964886]
[1745291792137,0.03,139.57,139.56,39.70898093]
[1745291792337,0.03,139.57,139.56,18.64964886]
[1745291792556,0.03,139.57,139.55,21.05933207]
[1745291792557,0.03,139.57,139.55,18.64964886]
[1745291792734,21.08933207,139.57,139.53,18.64964886]
[1745291793630,7.16537689,139.56,139.53,18.64964886]
[1745291793833,0.03,139.57,139.54,21.05933207]
[1745291794032,0.03,139.57,139.56,39.70898093]
[1745291796045,0.03,139.57,139.56,18.64964886]
[1745291796681,0.03,139.57,139.54,21.05933207]
[1745291796868,21.08933207,139.57,139.52,118.83933207]
[1745291797174,0.03,139.57,139.56,21.05933207]
[1745291797343,0.03,139.57,139.56,39.70898093]
[1745291797860,0.03,139.57,139.56,18.64964886]
[1745291798667,0.03,139.57,139.56,39.70898093]
[1745291802860,0.03,139.57,139.56,122.30898093]
[1745291803163,0.03,139.57,139.56,165.34898093]
[1745291804255,0.03,139.58,139.57,87.68964886]
[1745291804566,0.03,139.58,139.57,108.74898093]
[1745291805071,0.03,139.58,139.57,65.70898093]
[1745291805569,1.2340657,139.6,139.59,26.0]
[1745291805758,1.2340657,139.6,139.59,47.05933207]
[1745291805958,1.2340657,139.6,139.59,26.0]
[1745291806159,1.2340657,139.6,139.59,47.05933207]
[1745291807169,1.2340657,139.6,139.59,65.70898093]
[1745291807478,1.2340657,139.6,139.59,18.64964886]
[1745291808172,1.2340657,139.6,139.59,39.70898093]
[1745291808561,1e-08,139.6,139.59,148.30898093]
[1745291808754,0.03,139.63,139.62,44.64964886]
[1745291808957,0.03,139.63,139.62,80.86898093]
[1745291811887,0.05,139.76,139.71,18.64964886]
[1745291812200,0.05,139.76,139.75,39.70898093]
[1745291813065,0.05,139.76,139.71,26.0]
[1745291813388,0.05,139.76,139.73,21.05933207]
[1745291813555,0.05,139.76,139.74,21.05933207]
[1745291813753,0.05,139.76,139.75,21.05933207]
[1745291813984,0.05,139.76,139.74,21.05933207]
[1745291814165,21.05933207,139.75,139.67,3.63131744]
[1745291814361,21.05933207,139.7,139.67,3.63131744]
[1745291814976,21.05933207,139.71,139.67,3.63131744]
[1745291815181,7.15922107,139.68,139.64,21.05933207]
[1745291815481,21.05933207,139.7,139.65,21.05933207]
[1745291815680,21.05933207,139.69,139.64,39.70898093]
[1745291816675,25.0518932,139.71,139.63,15.16]
[1745291816676,21.05933207,139.65,139.63,15.16]
[1745291816883,21.05933207,139.64,139.6,21.05933207]
[1745291817065,21.05933207,139.65,139.6,21.05933207]
[1745291817267,7.16075904,139.65,139.62,18.64964886]
[1745291817687,7.16075904,139.65,139.61,21.05933207]
[1745291818000,21.05933207,139.63,139.59,15.16]
[1745291818166,21.05933207,139.64,139.59,36.21933207]
[1745291818563,21.05933207,139.63,139.59,15.16]
[1745291819192,7.16229766,139.62,139.59,15.16]
[1745291819480,21.05933207,139.61,139.56,122.30898093]
[1745291819788,21.05933207,139.6,139.56,33.80964886]
[1745291819964,21.05933207,139.61,139.56,54.86898093]
[1745291820299,7.16229766,139.62,139.57,18.64964886]
[1745291820473,7.16229766,139.62,139.58,21.05933207]
[1745291820680,7.16229766,139.62,139.59,21.05933207]
[1745291821186,17.90300675,139.65,139.59,21.05933207]
[1745291821692,21.05933207,139.64,139.59,21.05933207]
[1745291821898,21.05933207,139.63,139.58,21.05933207]
[1745291822062,21.05933207,139.61,139.57,21.05933207]
[1745291822682,17.90300675,139.65,139.57,39.70898093]
[1745291822888,21.05933207,139.63,139.58,21.05933207]
[1745291823871,21.05933207,139.62,139.58,18.64964886]
[1745291824285,21.05933207,139.62,139.56,15.16]
[1745291824488,21.05933207,139.61,139.57,18.64964886]
[1745291824694,21.05933207,139.59,139.56,15.16]
[1745291825283,7.1648635,139.57,139.54,18.64964886]
[1745291825483,7.1648635,139.57,139.53,18.64964886]
[1745291825692,28.22419557,139.57,139.52,36.21933207]
[1745291826076,7.1648635,139.57,139.53,21.05933207]
[1745291826283,21.05933207,139.55,139.51,0.063]
[1745291826482,21.05933207,139.54,139.51,0.063]
[1745291827298,7.16743119,139.52,139.51,0.063]
[1745291827510,28.22676326,139.52,139.51,0.063]
[1745291829692,49.28609533,139.52,139.51,0.063]
[1745291829883,28.22676326,139.52,139.51,0.063]
[1745291831479,49.28609533,139.52,139.51,1e-08]
[1745291833793,28.22676326,139.52,139.51,1e-08]
[1745291834112,49.28609533,139.52,139.51,1e-08]
[1745291835981,28.22676326,139.52,139.51,1e-08]
[1745291837100,28.22642017,139.53,139.51,1e-08]
[1745291837410,7.1670881,139.53,139.51,1e-08]
[1745291837584,28.22642017,139.53,139.51,1e-08]
[1745291837784,7.1670881,139.53,139.51,1e-08]
[1745291837996,7.16640389,139.54,139.51,1e-08]
[1745291838202,28.22573596,139.54,139.51,1e-08]
[1745291838488,21.05933207,139.52,139.51,1e-08]
[1745291839999,28.22676326,139.52,139.51,1e-08]
[1745291840807,49.28609533,139.52,139.51,1e-08]
[1745291841305,49.28609533,139.52,139.5,0.063]
[1745291841306,6.199,139.51,139.5,1e-08]
[1745291841511,27.25833207,139.51,139.5,1e-08]
[1745291842102,34.42627702,139.51,139.5,1e-08]
[1745291842710,34.42627702,139.51,139.45,0.063]
[1745291842711,26.0,139.48,139.45,0.063]
[1745291843013,26.0,139.44,139.39,0.063]
[1745291843213,21.05933207,139.4,139.39,0.063]
[1745291844089,28.23293321,139.4,139.39,0.063]
[1745291847602,7.17360114,139.4,139.39,0.063]
[1745291847791,28.23256611,139.41,139.39,0.063]
[1745291848118,7.17205766,139.43,139.39,0.063]
[1745291848300,21.05933207,139.41,139.39,0.063]
[1745291848507,7.17051484,139.46,139.4,21.05933207]
[1745291848704,7.16948666,139.48,139.45,21.05933207]
[1745291849007,21.05933207,139.5,139.45,21.05933207]
[1745291849188,21.05933207,139.49,139.44,21.05933207]
[1745291849607,21.05933207,139.48,139.43,21.05933207]
[1745291849910,25.08780732,139.51,139.44,21.05933207]
[1745291850116,25.08421127,139.53,139.44,21.05933207]
[1745291850417,21.05933207,139.46,139.41,36.23933207]
[1745291850598,60.91879881,139.53,139.43,21.05933207]
[1745291850790,21.05933207,139.5,139.45,21.05933207]
[1745291851224,21.05933207,139.49,139.44,21.05933207]
[1745291851520,21.05933207,139.48,139.43,21.05933207]
[1745291851689,21.05933207,139.5,139.45,21.05933207]
[1745291852117,7.16897268,139.49,139.45,21.05933207]
[1745291852507,28.22784987,139.5,139.45,21.05933207]
[1745291852712,28.2274767,139.51,139.47,39.70898093]
[1745291852894,7.16814463,139.51,139.47,39.70898093]
[1745291853219,21.05933207,139.49,139.45,21.05933207]
[1745291853427,21.05933207,139.49,139.44,39.70898093]
[1745291853806,28.2274767,139.51,139.46,21.05933207]
[1745291854122,28.2274767,139.51,139.47,18.64964886]
[1745291854312,21.05933207,139.51,139.47,18.64964886]
[1745291854634,21.05933207,139.52,139.48,18.64964886]
[1745291854797,21.05933207,139.53,139.48,39.70898093]
[1745291855115,7.16640389,139.54,139.5,39.70898093]
[1745291855423,7.16640389,139.54,139.5,18.64964886]
[1745291855424,28.22573596,139.54,139.5,18.64964886]
[1745291856214,7.1648635,139.57,139.51,18.64964886]
[1745291856403,7.1648635,139.57,139.53,21.05933207]
[1745291856610,21.05933207,139.55,139.5,21.05933207]
[1745291857201,21.05933207,139.54,139.49,39.70898093]
[1745291857614,21.05933207,139.55,139.5,21.05933207]
[1745291857896,21.05933207,139.56,139.51,21.05933207]
[1745291858102,21.05933207,139.56,139.51,39.70898093]
[1745291858316,21.05933207,139.54,139.5,21.05933207]
[1745291858916,21.05933207,139.55,139.51,39.70898093]
[1745291859104,25.07702227,139.57,139.52,21.05933207]
[1745291859105,21.05933207,139.56,139.52,21.05933207]
[1745291859507,21.05933207,139.56,139.52,18.64964886]
[1745291860929,21.05933207,139.56,139.52,21.05933207]
[1745291861257,21.05933207,139.57,139.52,21.05933207]
[1745291861542,0.03,139.58,139.55,39.70898093]
[1745291861823,0.03,139.58,139.56,21.05933207]
[1745291863310,0.03,139.58,139.57,18.64964886]
[1745291863815,0.03,139.58,139.56,21.05933207]
[1745291864121,21.08933207,139.58,139.53,21.05933207]
[1745291864313,21.05933207,139.56,139.52,15.16]
[1745291864520,21.05933207,139.55,139.52,15.16]
[1745291865931,21.05933207,139.56,139.52,15.16]
[1745291866113,21.05933207,139.56,139.52,36.21933207]
[1745291866433,7.16558263,139.56,139.53,18.64964886]
[1745291866610,7.16492229,139.57,139.53,39.70898093]
[1745291867035,28.22425436,139.57,139.53,18.64964886]
[1745291867532,7.1945393,139.58,139.55,21.05933207]
[1745291868327,0.03,139.58,139.55,21.05933207]
[1745291869413,0.03,139.58,139.54,39.70898093]
[1745291869844,0.03,139.58,139.55,21.05933207]
[1745291870910,0.03,139.58,139.54,21.05933207]
[1745291871420,0.03,139.58,139.53,18.64964886]
[1745291871722,0.03,139.58,139.54,21.05933207]
[1745291872816,0.03,139.58,139.55,21.05933207]
[1745291873133,0.03,139.58,139.57,39.70898093]
[1745291874134,0.03,139.58,139.57,54.86898093]